fUST/lending_fUST_20241106
["ID","MTS","AMOUNT","RATE_DAILY","PERIOD"]
[341370464,1730847055771,-500.0,0.00039726,14]
[341370465,1730847055780,-500.0,0.00039726,14]
[341370466,1730847055789,-500.0,0.00039726,14]
[341370467,1730847055798,-1000.0,0.00039742,5]
[341370468,1730847055808,-846.15278951,0.00039742,5]
[341370469,1730847055817,-1000.0,0.00039742,5]
[341370470,1730847055826,-410.74914156,0.00039742,5]
[341370471,1730847055835,-503.70836535,0.00039742,5]
[341370472,1730847055845,-762.63039691,0.00039742,5]
[341370473,1730847055854,-1000.0,0.00039742,5]
[341370474,1730847055863,-1000.0,0.00039742,5]
[341370475,1730847055872,-1000.0,0.00039742,5]
[341370476,1730847055881,-501.12258613,0.00039742,5]
[341370477,1730847055891,-1000.0,0.00039742,5]
[341370478,1730847055900,-1000.0,0.00039742,5]
[341370479,1730847055910,-230.23701868,0.00039742,5]
[341370480,1730847055919,-1000.0,0.00039742,5]
[341370481,1730847055928,-10000.0,0.00039745,4]
[341370482,1730847055937,-150.0,0.00039773,5]
[341370483,1730847055946,-4353.7079598,0.00039836,2]
[341370484,1730847055955,-158.40841799,0.000399,32]
[341370485,1730847055964,-8659.41964586,0.000399,31]
[341370486,1730847055973,-509.570863,0.000399,2]
[341370487,1730847055983,-3566.69350431,0.000399,119]
[341370488,1730847055992,-500.0,0.00039999,14]
[341370489,1730847056002,-500.0,0.00039999,14]
[341370490,1730847056012,-9068.06513605,0.0004,4]
[341370491,1730847056024,-223.38047531,0.0004,120]
[341370492,1730847056034,-350.35858768,0.0004,60]
[341370493,1730847056043,-556.08044916,0.0004,7]
[341370494,1730847056052,-500.0,0.0004,30]
[341370495,1730847056062,-268.84010825,0.0004,7]
[341370496,1730847056138,-500.0,0.0004,14]
[341370497,1730847056147,-500.0,0.0004,14]
[341370498,1730847056156,-500.0,0.0004,14]
[341370499,1730847056165,-500.0,0.0004,14]
[341370500,1730847056174,-500.0,0.0004,14]
[341370501,1730847056184,-500.0,0.0004,14]
[341370502,1730847056193,-500.0,0.0004,14]
[341370503,1730847056202,-250.0,0.0004,14]
[341370504,1730847056212,-1121.33457619,0.0004,120]
[341370505,1730847056222,-500.0,0.0004,120]
[341370506,1730847056231,-500.0,0.0004,14]
[341370507,1730847056240,-500.0,0.0004,14]
[341370508,1730847056249,-500.0,0.0004,14]
[341370509,1730847056258,-500.0,0.0004,14]
[341370510,1730847056267,-500.0,0.0004,14]
[341370511,1730847056276,-500.0,0.0004,14]
[341370512,1730847056286,-500.0,0.0004,14]
[341370513,1730847056295,-536.00090907,0.0004,14]
[341370514,1730847056304,-500.0,0.0004,14]
[341370515,1730847056315,-500.0,0.0004,14]
[341370516,1730847056325,-500.0,0.0004,14]
[341370517,1730847056334,-500.0,0.0004,14]
[341370518,1730847056343,-500.0,0.0004,14]
[341370519,1730847056353,-500.0,0.0004,14]
[341370520,1730847056362,-500.0,0.0004,14]
[341370521,1730847056372,-500.0,0.0004,14]
[341370522,1730847056381,-627.95,0.0004,14]
[341370523,1730847056390,-500.0,0.0004,14]
[341370524,1730847056399,-430.6624587,0.0004,14]
[341370525,1730847056409,-500.0,0.0004,14]
[341370526,1730847056418,-500.0,0.0004,14]
[341370527,1730847056427,-500.0,0.0004,14]
[341370528,1730847056436,-656.26,0.0004,14]
[341370529,1730847056446,-291.36541828,0.0004,14]
[341370530,1730847056455,-1181.55,0.0004,14]
[341370531,1730847056464,-910.43,0.0004,14]
[341370532,1730847056474,-542.51829279,0.0004,14]
[341370533,1730847056483,-500.0,0.0004,14]
[341370534,1730847056493,-500.0,0.0004,14]
[341370535,1730847056502,-194.95554198,0.0004,14]
[341370536,1730847056511,-501.19,0.0004,14]
[341370537,1730847056521,-500.0,0.0004,14]
[341370538,1730847056530,-500.0,0.0004,14]
[341370539,1730847056539,-10897.95,0.0004,14]
[341370540,1730847056548,-500.0,0.0004,14]
[341370541,1730847056558,-500.0,0.0004,14]
[341370542,1730847056567,-500.0,0.0004,14]
[341370543,1730847056576,-8813.18,0.0004,14]
[341370544,1730847056586,-500.0,0.0004,14]
[341370545,1730847056595,-500.0,0.0004,14]
[341370546,1730847056604,-750.01,0.0004,14]
[341370547,1730847056614,-741.25,0.0004,14]
[341370548,1730847056623,-3022.06,0.0004,14]
[341370549,1730847056632,-500.0,0.0004,14]
[341370550,1730847056641,-500.0,0.0004,14]
[341370551,1730847056650,-500.0,0.0004,14]
[341370552,1730847056659,-2669.38,0.0004,14]
[341370553,1730847056668,-608.34,0.0004,14]
[341370554,1730847056678,-513.7972545,0.0004,14]
[341370555,1730847056687,-520.66738617,0.0004,14]
[341370556,1730847056696,-1004.22,0.0004,14]
[341370557,1730847056706,-500.0,0.0004,14]
[341370558,1730847056715,-500.0,0.0004,14]
[341370559,1730847056724,-500.0,0.0004,14]
[341370560,1730847056734,-500.0,0.0004,14]
[341370561,1730847056743,-500.0,0.0004,14]
[341370562,1730847056752,-500.0,0.0004,14]
[341370563,1730847056761,-500.0,0.0004,14]
[341370564,1730847056770,-367.49931953,0.0004,14]
[341370565,1730847056779,-1672.49,0.0004,14]
[341370566,1730847056789,-500.0,0.0004,14]
[341370567,1730847056798,-639.11,0.0004,14]
[341370568,1730847056808,-500.0,0.0004,14]
[341370569,1730847056817,-500.0,0.0004,2]
[341370570,1730847056828,-500.0,0.0004,7]
[341370571,1730847056837,-1689.41,0.0004,14]
[341370572,1730847056847,-500.0,0.0004,14]
[341370573,1730847056855,-500.0,0.0004,14]
[341370574,1730847056865,-645.17722426,0.0004,14]
[341370575,1730847056874,-650.86,0.0004,14]
[341370576,1730847056884,-1000.0,0.0004,116]
[341370577,1730847056893,-3875.33,0.0004,14]
[341370578,1730847056902,-500.0,0.0004,14]
[341370579,1730847056912,-158.24664159,0.0004,14]
[341370580,1730847056921,-837.06,0.0004,14]
[341370581,1730847056930,-500.0,0.0004,14]
[341370582,1730847056939,-500.0,0.0004,14]
[341370583,1730847056949,-153.46642416,0.0004,14]
[341370584,1730847056958,-500.0,0.0004,14]
[341370585,1730847056967,-500.0,0.0004,14]
[341370586,1730847056978,-500.0,0.0004,14]
[341370587,1730847056988,-1000.0,0.00040042,5]
[341370588,1730847056997,-1001.4356543,0.00040042,5]
[341370589,1730847057007,-1000.0,0.00040042,5]
[341370590,1730847057018,-500.69202066,0.00040042,5]
[341370591,1730847057027,-1000.0,0.00040042,5]
[341370592,1730847057037,-4353.7079598,0.0004018,2]
[341370593,1730847057046,-5653.28200967,0.0004023,2]
[341370594,1730847057056,-500.0,0.00040273,14]
[341370595,1730847057066,-500.0,0.00040273,14]
[341370596,1730847057075,-500.0,0.00040273,14]
[341370597,1730847057084,-500.0,0.00040273,14]
[341370598,1730847057095,-500.0,0.00040273,14]
[341370599,1730847057105,-500.0,0.00040273,14]
[341370600,1730847057114,-500.0,0.00040273,14]
[341370601,1730847057123,-326.84527875,0.00040273,14]
[341370602,1730847057132,-500.0,0.00040273,120]
[341370603,1730847057141,-500.0,0.00040273,14]
[341370604,1730847057150,-500.0,0.00040273,14]
[341370605,1730847057159,-500.0,0.00040273,14]
[341370606,1730847057168,-246.34984686,0.00040273,14]
[341370607,1730847057178,-500.0,0.00040273,14]
[341370608,1730847057187,-500.0,0.00040273,14]
[341370609,1730847057197,-500.0,0.00040273,14]
[341370610,1730847057206,-500.0,0.00040273,14]
[341370611,1730847057215,-500.0,0.00040273,14]
[341370612,1730847057225,-500.0,0.00040273,14]
[341370613,1730847057234,-500.0,0.00040273,14]
[341370614,1730847057243,-500.0,0.00040273,14]
[341370615,1730847057252,-313.18885748,0.00040273,14]
[341370616,1730847057262,-500.0,0.00040273,14]
[341370617,1730847057270,-627.95,0.00040273,14]
[341370618,1730847057280,-500.0,0.00040273,14]
[341370619,1730847057289,-500.0,0.00040273,14]
[341370620,1730847057298,-500.0,0.00040273,14]
[341370621,1730847057307,-500.0,0.00040273,14]
[341370622,1730847057324,-656.26,0.00040273,14]
[341370623,1730847057333,-1181.55,0.00040273,14]
[341370624,1730847057342,-910.43,0.00040273,14]
[341370625,1730847057351,-500.0,0.00040273,14]
[341370626,1730847057361,-500.0,0.00040273,14]
[341370627,1730847057370,-501.19,0.00040273,14]
[341370628,1730847057379,-500.0,0.00040273,14]
[341370629,1730847057389,-500.0,0.00040273,14]
[341370630,1730847057398,-10897.95,0.00040273,14]
[341370631,1730847057407,-500.0,0.00040273,14]
[341370632,1730847057417,-500.0,0.00040273,14]
[341370633,1730847057428,-500.0,0.00040273,14]
[341370634,1730847057437,-8813.18,0.00040273,14]
[341370635,1730847057447,-500.0,0.00040273,14]
[341370636,1730847057456,-500.0,0.00040273,14]
[341370637,1730847057465,-750.01,0.00040273,14]
[341370638,1730847057474,-741.25,0.00040273,14]
[341370639,1730847057483,-3022.06,0.00040273,14]
[341370640,1730847057492,-500.0,0.00040273,14]
[341370641,1730847057502,-500.0,0.00040273,14]
[341370642,1730847057511,-2669.38,0.00040273,14]
[341370643,1730847057520,-608.34,0.00040273,14]
[341370644,1730847057530,-1004.22,0.00040273,14]
[341370645,1730847057540,-500.0,0.00040273,14]
[341370646,1730847057549,-500.0,0.00040273,14]
[341370647,1730847057561,-500.0,0.00040273,14]
[341370648,1730847057570,-522.80351404,0.00040273,14]
[341370649,1730847057579,-500.0,0.00040273,14]
[341370650,1730847057589,-500.0,0.00040273,14]
[341370651,1730847057598,-500.0,0.00040273,14]
[341370652,1730847057607,-1672.49,0.00040273,14]
[341370653,1730847057616,-500.0,0.00040273,14]
[341370654,1730847057625,-639.11,0.00040273,14]
[341370655,1730847057634,-500.0,0.00040273,14]
[341370656,1730847057644,-500.0,0.00040273,2]
[341370657,1730847057653,-500.0,0.00040273,7]
[341370658,1730847057663,-1689.41,0.00040273,14]
[341370659,1730847057671,-239.28448246,0.00040273,14]
[341370660,1730847057680,-500.0,0.00040273,14]
[341370661,1730847057690,-650.86,0.00040273,14]
[341370662,1730847057700,-1000.0,0.00040273,116]
[341370663,1730847057709,-3875.33,0.00040273,14]
[341370664,1730847057719,-500.0,0.00040273,14]
[341370665,1730847057727,-837.06,0.00040273,14]
[341370666,1730847057737,-500.0,0.00040273,14]
[341370667,1730847057746,-150.57014717,0.00040273,14]
[341370668,1730847057755,-500.0,0.00040273,14]
[341370669,1730847057764,-500.0,0.00040273,14]
[341370670,1730847057772,-500.0,0.00040273,14]
[341370671,1730847057843,-250.0,0.00040321,5]
[341370672,1730847057853,-1579.88,0.00040337,120]
[341370673,1730847057862,-153.0,0.00040348,30]
[341370674,1730847057871,-153.0,0.00040348,30]
[341370675,1730847057880,-153.0,0.00040348,30]
[341370676,1730847057889,-153.0,0.00040348,30]
[341370677,1730847057898,-153.0,0.00040348,30]
[341370678,1730847057907,-153.0,0.00040485,30]
[341370679,1730847057916,-302.7081422,0.00040485,30]
[341370680,1730847057925,-261.7917478,0.00040485,30]
[341370681,1730847057934,-153.0,0.00040485,30]
[341370682,1730847057943,-303.3217478,0.00040485,30]
[341370683,1730847057952,-153.0,0.00040485,30]
[341370684,1730847057962,-153.0,0.00040485,30]
[341370685,1730847057970,-153.0,0.00040485,30]
[341370686,1730847057979,-500.0,0.00040499,14]
[341370687,1730847057989,-31671.37553499,0.000405,60]
[341370688,1730847057998,-4353.7079598,0.00040524,2]
[341370689,1730847058008,-500.0,0.00040547,14]
[341370690,1730847058019,-500.0,0.00040547,14]
[341370691,1730847058028,-500.0,0.00040547,14]
[341370692,1730847058037,-306.08839093,0.00040547,14]
[341370693,1730847058046,-539.60071504,0.00040547,14]
[341370694,1730847058055,-500.0,0.00040547,14]
[341370695,1730847058066,-500.0,0.00040547,14]
[341370696,1730847058075,-500.0,0.00040547,120]
[341370697,1730847058084,-500.0,0.00040547,14]
[341370698,1730847058093,-500.0,0.00040547,14]
[341370699,1730847058102,-500.0,0.00040547,14]
[341370700,1730847058111,-500.0,0.00040547,14]
[341370701,1730847058120,-500.0,0.00040547,14]
[341370702,1730847058129,-500.0,0.00040547,14]
[341370703,1730847058138,-500.0,0.00040547,14]
[341370704,1730847058147,-500.0,0.00040547,14]
[341370705,1730847058155,-500.0,0.00040547,14]
[341370706,1730847058165,-311.05209474,0.00040547,14]
[341370707,1730847058175,-500.0,0.00040547,14]
[341370708,1730847058184,-500.0,0.00040547,14]
[341370709,1730847058194,-627.95,0.00040547,14]
[341370710,1730847058203,-500.0,0.00040547,14]
[341370711,1730847058213,-500.0,0.00040547,14]
[341370712,1730847058222,-500.0,0.00040547,14]
[341370713,1730847058231,-500.0,0.00040547,14]
[341370714,1730847058241,-656.26,0.00040547,14]
[341370715,1730847058251,-1181.55,0.00040547,14]
[341370716,1730847058260,-910.43,0.00040547,14]
[341370717,1730847058270,-575.37,0.00040547,14]
[341370718,1730847058279,-500.0,0.00040547,14]
[341370719,1730847058291,-501.19,0.00040547,14]
[341370720,1730847058300,-500.0,0.00040547,14]
[341370721,1730847058309,-500.0,0.00040547,14]
[341370722,1730847058319,-10897.95,0.00040547,14]
[341370723,1730847058330,-500.0,0.00040547,14]
[341370724,1730847058339,-500.0,0.00040547,14]
[341370725,1730847058349,-500.0,0.00040547,14]
[341370726,1730847058358,-7961.75222581,0.00040547,14]
[341370727,1730847058524,-500.0,0.0003863,14]
[341370728,1730847058533,-253.578,0.00038904,14]
[341370729,1730847058544,-246.422,0.00038904,14]
[341370730,1730847058554,-500.0,0.00038904,14]
[341370731,1730847058563,-500.0,0.00039178,14]
[341370732,1730847058573,-500.0,0.00039178,14]
[341370733,1730847058582,-500.0,0.00039452,14]
[341370734,1730847058591,-484.06442155,0.00039452,14]
[341370735,1730847058843,-358.44570268,0.00036628,15]
[341370736,1730847058852,-15.93557845,0.00039452,14]
[341370737,1730847058862,-500.0,0.00039726,14]
[341370738,1730847058873,-500.0,0.00039726,14]
[341370739,1730847058882,-538.98576274,0.0004,14]
[341370740,1730847058891,-500.0,0.0004,14]
[341370741,1730847058901,-500.0,0.00040273,14]
[341370742,1730847058910,-851.42777419,0.00040547,14]
[341370743,1730847058919,-500.0,0.00040547,14]
[341370744,1730847058929,-500.0,0.00040547,14]
[341370745,1730847058938,-750.01,0.00040547,14]
[341370746,1730847058947,-741.25,0.00040547,14]
[341370747,1730847058957,-680.54518194,0.00040547,14]
[341370748,1730847386332,168.755028,0.00013973,2]
[341370749,1730847623191,520.83333333,0.00020816,2]
[341370750,1730847930141,-162.4892859,0.00025959,2]
[341370751,1730847930164,-166.547833,0.00026642,2]
[341370752,1730847930185,-149.68666333,0.00026675,2]
[341370753,1730847935208,169.031259,0.00013973,2]
[341370754,1730847942093,-12.04171789,0.00026675,2]
[341370755,1730847942118,-166.547833,0.00026687,2]
[341370756,1730847942140,-64.39713602,0.00026731,2]
[341370758,1730848036161,-520.83333333,0.00025562,2]
[341370759,1730848036183,-102.15069698,0.00026731,2]
[341370760,1730848036205,-166.547833,0.00026775,2]
[341370761,1730848036226,-212.4884543,0.00027526,2]
[341370762,1730848036254,-177.42055083,0.00027526,2]
[341370763,1730848040105,-521.94325787,0.00027526,2]
[341370764,1730848040127,-84.78980758,0.00027577,2]
[341370765,1730848041241,-215.21019242,0.00027577,2]
[341370766,1730848041265,-175.16128188,0.00027577,2]
[341370767,1730848046094,-124.83871812,0.00027577,2]
[341370768,1730848046116,-399.7613039,0.00027577,2]
[341370769,1730848046139,-5362.74703034,0.00027578,61]
[341370770,1730848054087,-520.83333333,0.00024375,2]
[341370771,1730848054111,-684.93726426,0.00027578,61]
[341370772,1730848054133,-225.31156478,0.00027631,2]
[341370773,1730848054155,-156.65758258,0.00027631,2]
[341370774,1730848054177,-430.12227303,0.00027631,2]
[341370775,1730848054199,-250.0,0.00027631,2]
[341370776,1730848054221,-298.24057282,0.00027631,2]
[341370777,1730848145081,-520.83333333,0.00023189,2]
[341370778,1730848145102,-3000.0,0.00027632,2]
[341370779,1730848145125,-300.0,0.00027699,2]
[341370780,1730848145148,-300.0,0.00027699,2]
[341370781,1730848145169,-399.91025307,0.000277,5]
[341370782,1730848145190,-504.70687605,0.000277,2]
[341370783,1730848145211,-500.0,0.000277,5]
[341370784,1730848145232,-500.0,0.000277,5]
[341370785,1730848145253,-500.0,0.000277,2]
[341370786,1730848145275,-418.50126561,0.00028185,2]
[341370787,1730848145298,-409.45867194,0.00028185,2]
[341370788,1730848161101,-90.54132806,0.00028185,2]
[341370789,1730848161123,-500.0,0.00028185,2]
[341370790,1730848161145,-500.0,0.00028185,2]
[341370791,1730848161168,-500.0,0.00028185,2]
[341370792,1730848161190,-414.04536382,0.00028185,2]
[341370793,1730848161211,-20310.0596969,0.00028186,2]
[341370794,1730848161232,-911.852263,0.00028211,2]
[341370795,1730848161255,-150.0,0.000287,2]
[341370796,1730848161276,-911.852263,0.00028896,2]
[341370797,1730848161296,-1000.0,0.0002907,5]
[341370798,1730848161316,-1000.0,0.0002907,2]
[341370799,1730848161338,-503.76821782,0.000293,5]
[341370800,1730848161359,-500.0,0.000293,5]
[341370801,1730848161380,-500.0,0.000293,5]
[341370802,1730848161401,-500.37269111,0.000293,5]
[341370803,1730848161424,-151.0,0.0003,120]
[341370804,1730848161448,-151.0,0.0003,120]
[341370805,1730848161471,-198.39,0.0003,2]
[341370806,1730848161494,-242.3036145,0.00030137,2]
[341370807,1730848161518,-200.0,0.000305,120]
[341370808,1730848161545,-929.23802037,0.00030843,2]
[341370809,1730848169109,-1254.58226926,0.00030672,2]
[341370810,1730848173132,-3745.41773074,0.00030672,2]
[341370811,1730848173154,-731.34038718,0.00030843,2]
[341370847,1730848232130,-4268.65961282,0.00030843,2]
[341370848,1730848232140,-570.76197963,0.00030843,2]
[341370849,1730848232149,-509.0,0.00032,30]
[341370850,1730848232158,-168.528,0.00032008,31]
[341370851,1730848232168,-465.12999818,0.00032381,2]
[341370852,1730848232177,-500.0,0.00032876,7]
[341370853,1730848232187,-500.0,0.00032876,7]
[341370854,1730848232196,-500.0,0.00032876,7]
[341370855,1730848232205,-460.07912299,0.00032876,7]
[341370856,1730848232216,-180.342133,0.00032877,120]
[341370857,1730848232228,-325.53227111,0.00032972,2]
[341370858,1730848232239,-165.0,0.00033,2]
[341370859,1730848232250,-151.0,0.00033151,120]
[341370860,1730848232261,-152.2,0.000335,31]
[341370861,1730848232272,-152.2,0.000335,31]
[341370862,1730848232282,-152.2,0.000335,31]
[341370863,1730848232291,-152.2,0.000335,31]
[341370864,1730848232300,-152.2,0.000335,31]
[341370865,1730848232309,-500.0,0.00033698,10]
[341370866,1730848232318,-151.0,0.00034,120]
[341370867,1730848232327,-150.0,0.0003443,2]
[341370868,1730848232337,-150.0,0.00034432,30]
[341370869,1730848232346,-500.0,0.0003452,13]
[341370870,1730848232355,-165.0,0.00034521,2]
[341370871,1730848232364,-242.74,0.00035,2]
[341370872,1730848232374,-500.0,0.00035342,16]
[341370873,1730848232383,-152.2,0.000356,31]
[341370874,1730848232393,-152.2,0.000356,31]
[341370875,1730848232402,-152.2,0.000356,31]
[341370876,1730848232411,-152.2,0.000356,31]
[341370877,1730848232420,-152.2,0.000356,31]
[341370878,1730848232430,-152.2,0.000356,31]
[341370879,1730848232439,-152.2,0.000356,31]
[341370880,1730848232449,-152.2,0.000356,31]
[341370881,1730848232458,-152.2,0.000356,31]
[341370882,1730848232468,-152.2,0.000356,31]
[341370883,1730848232478,-170.232003,0.00035736,2]
[341370884,1730848232487,-162.235697,0.00035736,2]
[341370885,1730848232496,-153.429889,0.00035736,2]
[341370886,1730848232506,-158.722236,0.00035736,2]
[341370887,1730848232515,-500.0,0.00036164,19]
[341370888,1730848232524,-151.0,0.00036301,120]
[341370889,1730848232534,-170.232003,0.00036331,2]
[341370890,1730848232543,-170.232003,0.00036927,2]
[341370891,1730848232556,-500.0,0.00036986,22]
[341370892,1730848232569,-170.232003,0.00037522,2]
[341370893,1730848232578,-162.235697,0.00037522,2]
[341370894,1730848232588,-152.2,0.000377,31]
[341370895,1730848232598,-152.2,0.000377,31]
[341370896,1730848232608,-152.2,0.000377,31]
[341370897,1730848232618,-152.2,0.000377,31]
[341370898,1730848232628,-152.2,0.000377,31]
[341370899,1730848232639,-152.2,0.000377,31]
[341370900,1730848232648,-152.2,0.000377,31]
[341370901,1730848232658,-152.2,0.000377,31]
[341370902,1730848232667,-152.2,0.000377,31]
[341370903,1730848232676,-152.2,0.000377,31]
[341370904,1730848232686,-500.0,0.00037755,2]
[341370905,1730848232696,-5000.0,0.00037806,120]
[341370906,1730848232705,-500.0,0.00037808,25]
[341370907,1730848232715,-151.0,0.00038,120]
[341370908,1730848232725,-242.74,0.00038,2]
[341370909,1730848232735,-2020.5367592,0.000382,109]
[341370910,1730848232745,-2020.53675917,0.000382,109]
[341370911,1730848232755,-2020.53675917,0.000382,109]
[341370912,1730848232764,-2020.53675917,0.00038308,110]
[341370913,1730848232774,-288.94,0.00038346,3]
[341370914,1730848232783,-866.85,0.00038346,3]
[341370915,1730848232793,-1196.51,0.00038346,10]
[341370916,1730848232802,-997.09,0.00038346,10]
[341370917,1730848232811,-5000.0,0.00038354,120]
[341370918,1730848232821,-600.0,0.00038355,2]
[341370919,1730848232830,-1119.08,0.00038355,120]
[341370920,1730848232840,-3179.56515436,0.00038355,120]
[341370921,1730848232849,-161.43957928,0.00038355,14]
[341370922,1730848232861,-562.16180241,0.00038356,14]
[341370923,1730848232876,-605.54350471,0.00038356,14]
[341370924,1730848232890,-508.1523802,0.00038356,14]
[341370925,1730848232905,-525.64228532,0.00038356,14]
[341370926,1730848232917,-513.58732317,0.00038356,14]
[341370927,1730848232929,-506.67717453,0.00038356,14]
[341370928,1730848232942,-500.0,0.00038356,14]
[341370929,1730848232955,-500.0,0.00038356,14]
[341370930,1730848232969,-500.0,0.00038356,14]
[341370931,1730848232982,-139.35834198,0.00038356,14]
[341370932,1730848233005,-360.64165802,0.00038356,14]
[341370933,1730848233018,-501.3037875,0.00038356,14]
[341370934,1730848233031,-500.0,0.00038356,14]
[341370935,1730848233043,-446.56455448,0.00038356,14]
[341370936,1730848233327,-54.33791998,0.00038356,14]
[341370937,1730848233340,-574.79198545,0.00038356,14]
[341370938,1730848233353,-372.29559152,0.00038356,14]
[341371142,1730848240328,-268.22726265,0.00035259,7]
[341371144,1730848240338,-830.91,0.00038346,10]
[341371146,1730848240348,-387.13842805,0.00038354,15]
[341371148,1730848240357,-213.89630596,0.00038354,15]
[341371150,1730848240367,-264.75781611,0.00038356,14]
[341371152,1730848240376,-509.59541064,0.00038356,14]
[341371154,1730848240385,-203.9549025,0.00038356,14]
[341371156,1730848240394,-508.5509314,0.00038356,14]
[341371158,1730848240404,-500.0,0.00038356,14]
[341371159,1730848240414,-500.0,0.00038356,14]
[341371161,1730848240423,-500.0,0.00038356,14]
[341371163,1730848240432,-500.0,0.00038356,14]
[341371165,1730848240442,-500.0,0.00038356,120]
[341371167,1730848240451,-361.24040974,0.00038356,14]
[341371169,1730848240461,-500.0,0.00038356,14]
[341371171,1730848240471,-500.0,0.00038356,14]
[341371173,1730848240481,-508.14146953,0.00038356,14]
[341371175,1730848240490,-500.0,0.00038356,14]
[341371177,1730848240500,-500.0,0.00038356,14]
[341371179,1730848240509,-500.0,0.00038356,14]
[341371181,1730848240519,-500.0,0.00038356,14]
[341371183,1730848240529,-910.86,0.00038356,14]
[341371185,1730848240538,-500.0,0.00038356,14]
[341371187,1730848240549,-500.0,0.00038356,14]
[341371189,1730848240561,-188.0,0.00038356,14]
[341371192,1730848240576,-398.48187561,0.00038356,14]
[341371193,1730848240586,-500.0,0.00038356,14]
[341371196,1730848240596,-500.0,0.00038356,14]
[341371198,1730848240607,-500.0,0.00038356,14]
[341371200,1730848240618,-500.0,0.00038356,14]
[341371202,1730848240630,-576.13073235,0.00038356,14]
[341371204,1730848240640,-513.30291869,0.00038356,14]
[341371206,1730848240649,-500.0,0.00038356,14]
[341371208,1730848240660,-500.0,0.00038356,14]
[341371210,1730848240670,-500.0,0.00038356,14]
[341371212,1730848240679,-503.10115305,0.00038356,14]
[341371214,1730848240689,-504.17899109,0.00038356,14]
[341371217,1730848240703,-162.62527204,0.00038356,14]
[341371219,1730848240714,-500.0,0.00038356,14]
[341371221,1730848240724,-500.0,0.00038356,14]
[341371223,1730848240735,-500.0,0.00038356,14]
[341371225,1730848240745,-500.0,0.00038356,14]
[341371227,1730848240754,-500.0,0.00038356,14]
[341371229,1730848240764,-500.0,0.00038356,2]
[341371231,1730848240773,-172.1506074,0.00038356,14]
[341371233,1730848240783,-500.0,0.00038356,14]
[341371235,1730848240793,-500.0,0.00038356,14]
[341371237,1730848240802,-500.0,0.00038356,14]
[341371239,1730848240812,-500.0,0.00038356,14]
[341371241,1730848240822,-500.0,0.00038356,120]
[341371243,1730848240832,-500.0,0.00038356,14]
[341371246,1730848240842,-500.0,0.00038356,14]
[341371248,1730848240852,-500.0,0.00038356,14]
[341371250,1730848240861,-500.0,0.00038356,14]
[341371252,1730848240870,-500.0,0.00038356,14]
[341371254,1730848240880,-500.0,0.00038356,14]
[341371256,1730848240890,-507.57278252,0.00038356,14]
[341371258,1730848240899,-500.0,0.00038356,14]
[341371260,1730848240909,-500.0,0.00038356,14]
[341371262,1730848240918,-551.27073173,0.00038356,14]
[341371264,1730848240928,-500.0,0.00038356,14]